[Event "*** SCC Grand Prix: Titled Tuesday Blitz"]
[Site "Chess.com"]
[Date "2020.06.02"]
[Round "5"]
[White "GMBenjaminBok"]
[Black "Goryachkina"]
[Result "1-0"]
[WhiteElo "2911"]
[BlackElo "2637"]
[TimeControl "180+1"]
[EndTime "11:01:37 PDT"]
[Termination "GMBenjaminBok won on time"]

1. d4 {[%clk 0:03:00.9]} 1... d5 {[%clk 0:02:59.5]} 2. Nf3 {[%clk 0:03:00.4]}
2... Nf6 {[%clk 0:02:58.8]} 3. Bf4 {[%clk 0:02:56.4]} 3... c5 {[%clk 0:02:55.5]}
4. e3 {[%clk 0:02:56.4]} 4... Nc6 {[%clk 0:02:49.7]} 5. Nbd2 {[%clk 0:02:56.3]}
5... cxd4 {[%clk 0:02:46.6]} 6. exd4 {[%clk 0:02:57.2]} 6... Qb6 {[%clk
0:02:46.3]} 7. Nb3 {[%clk 0:02:56.9]} 7... Bg4 {[%clk 0:02:45.8]} 8. Be2 {[%clk
0:02:52.4]} 8... e6 {[%clk 0:02:45.4]} 9. O-O {[%clk 0:02:50.3]} 9... Be7 {[%clk
0:02:43.5]} 10. a4 {[%clk 0:02:48.2]} 10... a5 {[%clk 0:02:34.2]} 11. h3 {[%clk
0:02:20.8]} 11... Bxf3 {[%clk 0:02:26.1]} 12. Bxf3 {[%clk 0:02:21.7]} 12... O-O
{[%clk 0:02:25.7]} 13. c3 {[%clk 0:02:18.6]} 13... Qd8 {[%clk 0:02:18.6]} 14.
Re1 {[%clk 0:02:06.2]} 14... Bd6 {[%clk 0:02:16.6]} 15. Qd2 {[%clk 0:01:55.9]}
15... Bxf4 {[%clk 0:02:08.6]} 16. Qxf4 {[%clk 0:01:56.8]} 16... Nd7 {[%clk
0:02:08.3]} 17. Be2 {[%clk 0:01:49.6]} 17... Ne7 {[%clk 0:01:59.6]} 18. Nd2
{[%clk 0:01:40.7]} 18... Ng6 {[%clk 0:01:56.8]} 19. Qe3 {[%clk 0:01:38.5]} 19...
Qc7 {[%clk 0:01:55.5]} 20. Nf3 {[%clk 0:01:37]} 20... Nb6 {[%clk 0:01:46.3]} 21.
h4 {[%clk 0:00:43.7]} 21... h6 {[%clk 0:01:29]} 22. g3 {[%clk 0:00:36.1]} 22...
Nc4 {[%clk 0:01:25.5]} 23. Qc1 {[%clk 0:00:35.6]} 23... Rab8 {[%clk 0:01:21.4]}
24. Bd3 {[%clk 0:00:34.2]} 24... Ne7 {[%clk 0:01:19]} 25. Qc2 {[%clk 0:00:33.2]}
25... Nd6 {[%clk 0:01:06.4]} 26. Ne5 {[%clk 0:00:26.1]} 26... Nc6 {[%clk
0:01:04]} 27. Nf3 {[%clk 0:00:20.5]} 27... Rbc8 {[%clk 0:00:59.8]} 28. Qe2
{[%clk 0:00:20.1]} 28... Rfe8 {[%clk 0:00:56.8]} 29. Kg2 {[%clk 0:00:19]} 29...
Qd8 {[%clk 0:00:46.5]} 30. Qd2 {[%clk 0:00:13.3]} 30... Qf6 {[%clk 0:00:37.2]}
31. Ne5 {[%clk 0:00:11.1]} 31... Qd8 {[%clk 0:00:31.3]} 32. Qf4 {[%clk 0:00:08]}
32... Nxe5 {[%clk 0:00:26.8]} 33. Rxe5 {[%clk 0:00:08.4]} 33... Nc4 {[%clk
0:00:23.9]} 34. Re2 {[%clk 0:00:07.4]} 34... Qc7 {[%clk 0:00:22.2]} 35. Qxc7
{[%clk 0:00:05.2]} 35... Rxc7 {[%clk 0:00:23.1]} 36. Kf3 {[%clk 0:00:03.4]}
36... Rb8 {[%clk 0:00:19.8]} 37. Bxc4 {[%clk 0:00:02.9]} 37... Rxc4 {[%clk
0:00:19.7]} 38. Ra3 {[%clk 0:00:03.1]} 38... Kf8 {[%clk 0:00:19.3]} 39. Ke3
{[%clk 0:00:02.8]} 39... Ke7 {[%clk 0:00:19.4]} 40. Kd3 {[%clk 0:00:03.3]} 40...
Kd7 {[%clk 0:00:18.5]} 41. h5 {[%clk 0:00:03.1]} 41... b6 {[%clk 0:00:15.6]} 42.
g4 {[%clk 0:00:03]} 42... f6 {[%clk 0:00:14.5]} 43. Re3 {[%clk 0:00:03]} 43...
Rbc8 {[%clk 0:00:14.4]} 44. Rb3 {[%clk 0:00:01.7]} 44... R8c6 {[%clk 0:00:14.5]}
45. Ra3 {[%clk 0:00:02.2]} 45... Kd6 {[%clk 0:00:13.7]} 46. Re1 {[%clk
0:00:02.2]} 46... Rc8 {[%clk 0:00:13.3]} 47. Re3 {[%clk 0:00:01.5]} 47... Kd7
{[%clk 0:00:13.4]} 48. Re2 {[%clk 0:00:01.6]} 48... R8c7 {[%clk 0:00:13]} 49.
Rc2 {[%clk 0:00:01.2]} 49... Rc8 {[%clk 0:00:12.9]} 50. b3 {[%clk 0:00:01.5]}
50... R4c6 {[%clk 0:00:13]} 51. Ra1 {[%clk 0:00:02.1]} 51... Ke7 {[%clk
0:00:12.6]} 52. Re1 {[%clk 0:00:02.5]} 52... Kf7 {[%clk 0:00:12.8]} 53. f4
{[%clk 0:00:02.6]} 53... R8c7 {[%clk 0:00:12.6]} 54. Re3 {[%clk 0:00:02.5]}
54... Rc8 {[%clk 0:00:12.6]} 55. Kd2 {[%clk 0:00:02.7]} 55... R8c7 {[%clk
0:00:13]} 56. Kd3 {[%clk 0:00:02.7]} 56... Rc8 {[%clk 0:00:13.4]} 57. Rc1 {[%clk
0:00:01.5]} 57... R8c7 {[%clk 0:00:13.2]} 58. Kd2 {[%clk 0:00:01.7]} 58... Rc8
{[%clk 0:00:13.5]} 59. Rce1 {[%clk 0:00:02.2]} 59... R8c7 {[%clk 0:00:12.3]} 60.
Rg1 {[%clk 0:00:02.1]} 60... Rc8 {[%clk 0:00:10.3]} 61. g5 {[%clk 0:00:02.6]}
61... hxg5 {[%clk 0:00:09.7]} 62. fxg5 {[%clk 0:00:03.5]} 62... Rh8 {[%clk
0:00:09.6]} 63. Rh3 {[%clk 0:00:03.9]} 63... fxg5 {[%clk 0:00:08.4]} 64. Rxg5
{[%clk 0:00:03.3]} 64... Rh7 {[%clk 0:00:08.3]} 65. Rf3+ {[%clk 0:00:03.6]}
65... Ke7 {[%clk 0:00:08.3]} 66. Rfg3 {[%clk 0:00:03.8]} 66... Kf7 {[%clk
0:00:08.7]} 67. Rf3+ {[%clk 0:00:03.8]} 67... Ke7 {[%clk 0:00:09.2]} 68. Kd3
{[%clk 0:00:04.2]} 68... Rc8 {[%clk 0:00:08.4]} 69. Re3 {[%clk 0:00:04.6]} 69...
Rd8 {[%clk 0:00:06.5]} 70. Rge5 {[%clk 0:00:04.3]} 70... Rd6 {[%clk 0:00:05.5]}
71. Rg3 {[%clk 0:00:03.8]} 71... Kf7 {[%clk 0:00:05.2]} 72. Rf3+ {[%clk
0:00:03.3]} 72... Ke7 {[%clk 0:00:05.6]} 73. Rfe3 {[%clk 0:00:03.5]} 73... Kf7
{[%clk 0:00:05.8]} 74. Rg5 {[%clk 0:00:03.5]} 74... Ke7 {[%clk 0:00:05.4]} 75.
Rf3 {[%clk 0:00:03.3]} 75... Rd8 {[%clk 0:00:05]} 76. Rfg3 {[%clk 0:00:03.4]}
76... Kf7 {[%clk 0:00:04.8]} 77. Re3 {[%clk 0:00:02.9]} 77... Rdh8 {[%clk
0:00:04.3]} 78. Rf3+ {[%clk 0:00:02.6]} 78... Ke7 {[%clk 0:00:04.5]} 79. Rfg3
{[%clk 0:00:03]} 79... Kf7 {[%clk 0:00:04.9]} 80. Rh3 {[%clk 0:00:03.1]} 80...
Kf6 {[%clk 0:00:03.8]} 81. Rg6+ {[%clk 0:00:02.8]} 81... Kf7 {[%clk 0:00:04.3]}
82. Rf3+ {[%clk 0:00:02.9]} 82... Ke7 {[%clk 0:00:03.7]} 83. Re3 {[%clk
0:00:03.4]} 83... Rxh5 {[%clk 0:00:04]} 84. Rgxe6+ {[%clk 0:00:03.2]} 84... Kd7
{[%clk 0:00:04.4]} 85. Rxb6 {[%clk 0:00:03.5]} 85... Rh3 {[%clk 0:00:03.9]} 86.
Rg6 {[%clk 0:00:02.5]} 86... Rxe3+ {[%clk 0:00:03.5]} 87. Kxe3 {[%clk
0:00:03.1]} 87... Rh3+ {[%clk 0:00:04.2]} 88. Kd2 {[%clk 0:00:03.6]} 88... Rh2+
{[%clk 0:00:04.7]} 89. Kc1 {[%clk 0:00:03.9]} 89... Rh7 {[%clk 0:00:04.8]} 90.
Kb2 {[%clk 0:00:03.1]} 90... Ke7 {[%clk 0:00:04.7]} 91. c4 {[%clk 0:00:03.5]}
91... dxc4 {[%clk 0:00:04.8]} 92. bxc4 {[%clk 0:00:04.4]} 92... Kf7 {[%clk
0:00:04.6]} 93. Rg3 {[%clk 0:00:03.8]} 93... Rh2+ {[%clk 0:00:04.5]} 94. Kc3
{[%clk 0:00:04.1]} 94... Kf6 {[%clk 0:00:04.9]} 95. d5 {[%clk 0:00:04.5]} 95...
g5 {[%clk 0:00:04.4]} 96. Kd4 {[%clk 0:00:04.9]} 96... Ra2 {[%clk 0:00:03.8]}
97. d6 {[%clk 0:00:04.9]} 97... Rxa4 {[%clk 0:00:03.5]} 98. Kd5 {[%clk
0:00:04.8]} 98... Ra1 {[%clk 0:00:03.1]} 99. c5 {[%clk 0:00:05.1]} 99... Rd1+
{[%clk 0:00:03]} 100. Kc6 {[%clk 0:00:05.5]} 100... a4 {[%clk 0:00:03.5]} 101.
Kc7 {[%clk 0:00:05.3]} 101... Ke6 {[%clk 0:00:03.5]} 102. Rxg5 {[%clk
0:00:04.1]} 102... a3 {[%clk 0:00:03.5]} 103. Rg2 {[%clk 0:00:04.6]} 103... Rd3
{[%clk 0:00:02.6]} 104. Re2+ {[%clk 0:00:04.3]} 104... Kf6 {[%clk 0:00:02.8]}
105. d7 {[%clk 0:00:04.2]} 1-0

[Event "*** SCC Grand Prix: Titled Tuesday Blitz"]
[Site "Chess.com"]
[Date "2020.06.02"]
[Round "6"]
[White "TERMINATOR_PC"]
[Black "albi1999"]
[Result "1-0"]
[WhiteElo "2487"]
[BlackElo "2638"]
[TimeControl "180+1"]
[EndTime "11:04:05 PDT"]
[Termination "TERMINATOR_PC won by resignation"]

1. e4 {[%clk 0:03:00.9]} 1... e5 {[%clk 0:02:59.2]} 2. Nf3 {[%clk 0:03:00.9]}
2... Nc6 {[%clk 0:02:59.7]} 3. d4 {[%clk 0:03:01.3]} 3... exd4 {[%clk
0:03:00.6]} 4. Bc4 {[%clk 0:03:01.7]} 4... Bc5 {[%clk 0:03:00.2]} 5. O-O {[%clk
0:03:01.2]} 5... Nf6 {[%clk 0:03:00.7]} 6. e5 {[%clk 0:03:01.5]} 6... d5 {[%clk
0:02:46.6]} 7. exf6 {[%clk 0:03:01.9]} 7... dxc4 {[%clk 0:02:46.6]} 8. fxg7
{[%clk 0:03:02.6]} 8... Rg8 {[%clk 0:02:46.4]} 9. Bg5 {[%clk 0:03:02.7]} 9...
Qd5 {[%clk 0:02:45.2]} 10. Re1+ {[%clk 0:02:58.1]} 10... Be6 {[%clk 0:02:44.7]}
11. Nc3 {[%clk 0:02:58.2]} 11... Qf5 {[%clk 0:02:41]} 12. Ne4 {[%clk 0:02:45]}
12... Rxg7 {[%clk 0:02:24.3]} 13. Nh4 {[%clk 0:02:43.9]} 13... Qxg5 {[%clk
0:02:11.4]} 14. Nxg5 {[%clk 0:02:43.5]} 14... Rxg5 {[%clk 0:02:12.3]} 15. f4
{[%clk 0:02:38.6]} 15... Rg4 {[%clk 0:01:54.9]} 16. Qxg4 {[%clk 0:02:37.9]} 1-0

[Event "*** SCC Grand Prix: Titled Tuesday Blitz"]
[Site "Chess.com"]
[Date "2020.06.02"]
[Round "6"]
[White "vitnik2020"]
[Black "GoValya"]
[Result "0-1"]
[WhiteElo "2301"]
[BlackElo "2181"]
[TimeControl "180+1"]
[EndTime "11:04:35 PDT"]
[Termination "GoValya won by resignation"]

1. e4 {[%clk 0:02:30.8]} 1... g6 {[%clk 0:02:57.7]} 2. d4 {[%clk 0:02:28.9]}
2... Bg7 {[%clk 0:02:57.2]} 3. h4 {[%clk 0:02:29.3]} 3... c5 {[%clk 0:02:55.8]}
4. h5 {[%clk 0:02:26.3]} 4... cxd4 {[%clk 0:02:51.6]} 5. h6 {[%clk 0:02:24.8]}
5... Bf6 {[%clk 0:02:51.4]} 6. Nf3 {[%clk 0:02:24.6]} 6... Nc6 {[%clk
0:02:50.3]} 7. Bc4 {[%clk 0:02:23]} 7... d6 {[%clk 0:02:47]} 8. c3 {[%clk
0:02:21.3]} 8... e5 {[%clk 0:02:43.3]} 9. cxd4 {[%clk 0:02:15]} 9... exd4 {[%clk
0:02:37.2]} 10. Nbd2 {[%clk 0:02:10.8]} 10... Nge7 {[%clk 0:02:31.6]} 11. O-O
{[%clk 0:02:09.6]} 11... O-O {[%clk 0:02:28.8]} 12. Nb3 {[%clk 0:02:01.6]} 12...
d5 {[%clk 0:02:28.3]} 13. exd5 {[%clk 0:01:59.8]} 13... Nxd5 {[%clk 0:02:28.1]}
14. Nfxd4 {[%clk 0:01:52.6]} 14... Nxd4 {[%clk 0:02:18.6]} 15. Nxd4 {[%clk
0:01:50.1]} 15... Nb6 {[%clk 0:02:18.2]} 0-1

[Event "*** SCC Grand Prix: Titled Tuesday Blitz"]
[Site "Chess.com"]
[Date "2020.06.02"]
[Round "6"]
[White "Larina_Marija"]
[Black "mfwagnerpeixoto"]
[Result "0-1"]
[WhiteElo "2114"]
[BlackElo "2266"]
[TimeControl "180+1"]
[EndTime "11:04:35 PDT"]
[Termination "mfwagnerpeixoto won by resignation"]

1. e4 {[%clk 0:03:00]} 1... c5 {[%clk 0:02:59]} 2. Nc3 {[%clk 0:02:59.7]} 2...
Nc6 {[%clk 0:02:58.1]} 3. g3 {[%clk 0:02:59.6]} 3... g6 {[%clk 0:02:57.6]} 4.
Bg2 {[%clk 0:03:00]} 4... Bg7 {[%clk 0:02:57.9]} 5. d3 {[%clk 0:03:00.1]} 5...
d6 {[%clk 0:02:58.2]} 6. Be3 {[%clk 0:03:00.5]} 6... e6 {[%clk 0:02:57]} 7. Nh3
{[%clk 0:02:55.8]} 7... h5 {[%clk 0:02:55.5]} 8. Ng5 {[%clk 0:02:45.9]} 8... h4
{[%clk 0:02:50.7]} 9. O-O {[%clk 0:02:44.7]} 9... Nf6 {[%clk 0:02:39.7]} 10. f4
{[%clk 0:02:40.1]} 10... hxg3 {[%clk 0:02:37.6]} 11. hxg3 {[%clk 0:02:39.9]}
11... Nh5 {[%clk 0:02:37.7]} 12. Qe1 {[%clk 0:02:27.7]} 12... Nd4 {[%clk
0:02:35.8]} 13. Rc1 {[%clk 0:02:25.1]} 13... Nf6 {[%clk 0:02:21.9]} 14. Ne2
{[%clk 0:02:18.1]} 14... Ng4 {[%clk 0:02:18.1]} 15. Bxd4 {[%clk 0:02:11.3]}
15... cxd4 {[%clk 0:02:19]} 16. f5 {[%clk 0:02:10.1]} 16... Qxg5 {[%clk
0:02:16.3]} 17. fxe6 {[%clk 0:02:06.2]} 17... Qe3+ {[%clk 0:02:13]} 0-1

[Event "*** SCC Grand Prix: Titled Tuesday Blitz"]
[Site "Chess.com"]
[Date "2020.06.02"]
[Round "6"]
[White "yobdc"]
[Black "Aleksandar-Topalov"]
[Result "1-0"]
[WhiteElo "2188"]
[BlackElo "2432"]
[TimeControl "180+1"]
[EndTime "11:04:49 PDT"]
[Termination "yobdc won by resignation"]

1. c4 {[%clk 0:03:00.9]} 1... Nf6 {[%clk 0:02:58.9]} 2. Nc3 {[%clk 0:03:00.3]}
2... c5 {[%clk 0:02:56.1]} 3. Nf3 {[%clk 0:02:59.9]} 3... g6 {[%clk 0:02:56.4]}
4. d4 {[%clk 0:02:57.9]} 4... Bg7 {[%clk 0:02:56.4]} 5. e4 {[%clk 0:02:56.8]}
5... O-O {[%clk 0:02:56.5]} 6. d5 {[%clk 0:02:50.4]} 6... d6 {[%clk 0:02:56.4]}
7. Be2 {[%clk 0:02:50.1]} 7... e6 {[%clk 0:02:56.2]} 8. O-O {[%clk 0:02:49.5]}
8... Re8 {[%clk 0:02:56.6]} 9. h3 {[%clk 0:02:48.9]} 9... exd5 {[%clk
0:02:56.2]} 10. exd5 {[%clk 0:02:49.2]} 10... Bf5 {[%clk 0:02:56.6]} 11. Bf4
{[%clk 0:02:45.8]} 11... Ne4 {[%clk 0:02:55.7]} 12. Nxe4 {[%clk 0:02:44.3]}
12... Bxe4 {[%clk 0:02:55.9]} 13. Qb3 {[%clk 0:02:20.5]} 13... Bxf3 {[%clk
0:02:52.8]} 14. Bxf3 {[%clk 0:02:19.6]} 14... b6 {[%clk 0:02:50.4]} 15. Rfe1
{[%clk 0:02:18.5]} 15... Rxe1+ {[%clk 0:02:47.7]} 16. Rxe1 {[%clk 0:02:19.4]}
16... a6 {[%clk 0:02:37.8]} 17. a4 {[%clk 0:02:16.1]} 17... Kf8 {[%clk
0:02:34.2]} 18. Qe3 {[%clk 0:01:54.5]} 18... a5 {[%clk 0:02:07.9]} 19. Bxd6+
{[%clk 0:01:52]} 1-0

[Event "*** SCC Grand Prix: Titled Tuesday Blitz"]
[Site "Chess.com"]
[Date "2020.06.02"]
[Round "6"]
[White "ferdipy"]
[Black "bulletteemo"]
[Result "1-0"]
[WhiteElo "2357"]
[BlackElo "2529"]
[TimeControl "180+1"]
[EndTime "11:05:07 PDT"]
[Termination "ferdipy won by resignation"]

1. e4 {[%clk 0:03:00.9]} 1... c5 {[%clk 0:02:50.9]} 2. d4 {[%clk 0:03:00.5]}
2... cxd4 {[%clk 0:02:49.4]} 3. c3 {[%clk 0:02:59.5]} 3... d5 {[%clk 0:02:48.9]}
4. exd5 {[%clk 0:02:59.2]} 4... Qxd5 {[%clk 0:02:49]} 5. cxd4 {[%clk 0:03:00.1]}
5... Nc6 {[%clk 0:02:49.1]} 6. Nf3 {[%clk 0:03:01]} 6... Bg4 {[%clk 0:02:47.7]}
7. Be2 {[%clk 0:02:59.7]} 7... e6 {[%clk 0:02:46.9]} 8. Nc3 {[%clk 0:02:55.4]}
8... Bb4 {[%clk 0:02:46.8]} 9. O-O {[%clk 0:02:55.3]} 9... Qd7 {[%clk
0:02:45.2]} 10. Be3 {[%clk 0:02:49.3]} 10... Nf6 {[%clk 0:02:44.6]} 11. Qb3
{[%clk 0:02:31.6]} 11... Bd6 {[%clk 0:02:39.3]} 12. Rad1 {[%clk 0:02:24.2]}
12... O-O {[%clk 0:02:38.8]} 13. Ne5 {[%clk 0:02:20.6]} 1-0

[Event "*** SCC Grand Prix: Titled Tuesday Blitz"]
[Site "Chess.com"]
[Date "2020.06.02"]
[Round "6"]
[White "biaf13"]
[Black "AlexZambrano"]
[Result "1-0"]
[WhiteElo "2014"]
[BlackElo "2217"]
[TimeControl "180+1"]
[EndTime "11:05:17 PDT"]
[Termination "biaf13 won by resignation"]

1. e4 {[%clk 0:03:00.9]} 1... d5 {[%clk 0:02:14.9]} 2. exd5 {[%clk 0:03:00.7]}
2... Qxd5 {[%clk 0:02:14.4]} 3. Nc3 {[%clk 0:02:59.3]} 3... Qd6 {[%clk
0:02:14.5]} 4. d4 {[%clk 0:02:57.5]} 4... Nf6 {[%clk 0:02:14.3]} 5. Nf3 {[%clk
0:02:56]} 5... Bg4 {[%clk 0:02:11.3]} 6. h3 {[%clk 0:02:56]} 6... Bxf3 {[%clk
0:02:11.1]} 7. Qxf3 {[%clk 0:02:56.9]} 7... c6 {[%clk 0:02:11.8]} 8. Be3 {[%clk
0:02:56]} 8... e6 {[%clk 0:02:11.1]} 9. O-O-O {[%clk 0:02:55.5]} 9... Be7 {[%clk
0:02:11.6]} 10. g4 {[%clk 0:02:53.9]} 10... O-O {[%clk 0:02:11.2]} 11. h4 {[%clk
0:02:49.1]} 11... Nd5 {[%clk 0:02:10.8]} 12. Nxd5 {[%clk 0:02:45.3]} 12... cxd5
{[%clk 0:02:10.3]} 13. g5 {[%clk 0:02:40.2]} 13... Rc8 {[%clk 0:02:05.9]} 14.
Kb1 {[%clk 0:02:34.1]} 14... Nc6 {[%clk 0:02:04.2]} 15. h5 {[%clk 0:02:32.7]}
15... Nb4 {[%clk 0:02:03.9]} 16. Bd3 {[%clk 0:02:28.8]} 16... Nxd3 {[%clk
0:02:03.9]} 17. Rxd3 {[%clk 0:02:27.3]} 17... Qc6 {[%clk 0:01:56.9]} 18. Rc3
{[%clk 0:02:27.2]} 18... Qb5 {[%clk 0:01:53.1]} 19. Rxc8+ {[%clk 0:02:25.7]}
19... Rxc8 {[%clk 0:01:53]} 20. g6 {[%clk 0:02:21]} 20... fxg6 {[%clk 0:01:43]}
21. hxg6 {[%clk 0:02:20.5]} 21... h6 {[%clk 0:01:33.5]} 22. Qf7+ {[%clk
0:02:09.4]} 1-0

[Event "*** SCC Grand Prix: Titled Tuesday Blitz"]
[Site "Chess.com"]
[Date "2020.06.02"]
[Round "6"]
[White "LamaChampetre"]
[Black "Eliwood44"]
[Result "1-0"]
[WhiteElo "2201"]
[BlackElo "2304"]
[TimeControl "180+1"]
[EndTime "11:05:19 PDT"]
[Termination "LamaChampetre won by resignation"]

1. d4 {[%clk 0:02:59.1]} 1... d5 {[%clk 0:02:59.8]} 2. c4 {[%clk 0:02:58.8]}
2... e6 {[%clk 0:02:57]} 3. Nf3 {[%clk 0:02:58.9]} 3... Nf6 {[%clk 0:02:55.7]}
4. g3 {[%clk 0:02:59]} 4... Be7 {[%clk 0:02:55.7]} 5. Bg2 {[%clk 0:02:59.4]}
5... O-O {[%clk 0:02:56.3]} 6. O-O {[%clk 0:03:00.2]} 6... dxc4 {[%clk
0:02:56.9]} 7. Ne5 {[%clk 0:02:59.7]} 7... Nc6 {[%clk 0:02:56.5]} 8. Bxc6 {[%clk
0:02:59.8]} 8... bxc6 {[%clk 0:02:53.8]} 9. Nxc6 {[%clk 0:03:00.7]} 9... Qe8
{[%clk 0:02:54]} 10. Nxe7+ {[%clk 0:03:01.2]} 10... Qxe7 {[%clk 0:02:54.9]} 11.
Qa4 {[%clk 0:03:01.2]} 11... e5 {[%clk 0:02:53.9]} 12. dxe5 {[%clk 0:03:00.9]}
12... Qxe5 {[%clk 0:02:48.9]} 13. Nc3 {[%clk 0:03:00.7]} 13... Be6 {[%clk
0:02:41.2]} 14. Bf4 {[%clk 0:02:56.3]} 14... Qh5 {[%clk 0:02:31.1]} 15. Bxc7
{[%clk 0:02:44]} 15... Ng4 {[%clk 0:02:16.7]} 16. h4 {[%clk 0:02:42.5]} 16... g5
{[%clk 0:02:14.1]} 17. Qb5 {[%clk 0:02:19.5]} 17... a6 {[%clk 0:02:04.5]} 18.
Qxg5+ {[%clk 0:02:12.5]} 18... Qxg5 {[%clk 0:02:04.6]} 19. hxg5 {[%clk
0:02:12.8]} 19... Rfc8 {[%clk 0:02:03]} 20. Bf4 {[%clk 0:02:09.6]} 20... Ra7
{[%clk 0:01:52.9]} 21. Rad1 {[%clk 0:02:06.8]} 21... Rb7 {[%clk 0:01:49.6]} 22.
Rd2 {[%clk 0:02:03.4]} 22... Rc6 {[%clk 0:01:45.2]} 23. f3 {[%clk 0:01:52.5]}
1-0

[Event "*** SCC Grand Prix: Titled Tuesday Blitz"]
[Site "Chess.com"]
[Date "2020.06.02"]
[Round "6"]
[White "2008king"]
[Black "Sjakkerntobi"]
[Result "0-1"]
[WhiteElo "2112"]
[BlackElo "2263"]
[TimeControl "180+1"]
[EndTime "11:05:37 PDT"]
[Termination "Sjakkerntobi won by resignation"]

1. e4 {[%clk 0:03:00.9]} 1... e6 {[%clk 0:02:59.3]} 2. d4 {[%clk 0:03:00.3]}
2... d5 {[%clk 0:03:00.2]} 3. Nc3 {[%clk 0:02:58]} 3... Bb4 {[%clk 0:03:00.4]}
4. exd5 {[%clk 0:02:56.5]} 4... exd5 {[%clk 0:02:59.6]} 5. Bd3 {[%clk
0:02:57.1]} 5... Nc6 {[%clk 0:02:59.7]} 6. a3 {[%clk 0:02:55.7]} 6... Bxc3+
{[%clk 0:02:58]} 7. bxc3 {[%clk 0:02:56.6]} 7... Nge7 {[%clk 0:02:58]} 8. Qh5
{[%clk 0:02:49.7]} 8... Be6 {[%clk 0:02:43.9]} 9. Ne2 {[%clk 0:02:47.2]} 9...
Qd7 {[%clk 0:02:42.5]} 10. Rb1 {[%clk 0:02:47.2]} 10... O-O-O {[%clk 0:02:25.9]}
11. h3 {[%clk 0:02:34.9]} 11... g6 {[%clk 0:02:24.2]} 12. Qf3 {[%clk 0:02:34.1]}
12... Bf5 {[%clk 0:02:23]} 13. O-O {[%clk 0:02:34.4]} 13... h5 {[%clk
0:02:20.3]} 14. Bg5 {[%clk 0:02:32.3]} 14... f6 {[%clk 0:02:14.8]} 15. Bxf6
{[%clk 0:02:30.5]} 15... Rhf8 {[%clk 0:02:14.8]} 16. Bxe7 {[%clk 0:02:26.8]}
16... Nxe7 {[%clk 0:02:15.4]} 17. Bxf5 {[%clk 0:02:22.6]} 17... Nxf5 {[%clk
0:02:15.7]} 18. Qd3 {[%clk 0:02:22.8]} 18... Nh4 {[%clk 0:02:14.1]} 19. Ng3
{[%clk 0:02:21.1]} 19... Rf3 {[%clk 0:02:12.1]} 20. Qd2 {[%clk 0:02:09]} 20...
Rdf8 {[%clk 0:02:08.6]} 21. Qg5 {[%clk 0:02:07.8]} 21... R8f4 {[%clk 0:02:06.8]}
22. Rbe1 {[%clk 0:01:59.6]} 22... b6 {[%clk 0:01:51.5]} 23. gxf3 {[%clk
0:01:30]} 23... Nxf3+ {[%clk 0:01:48.5]} 0-1

[Event "*** SCC Grand Prix: Titled Tuesday Blitz"]
[Site "Chess.com"]
[Date "2020.06.02"]
[Round "6"]
[White "VladimirBelous"]
[Black "Ali-Farahat"]
[Result "1-0"]
[WhiteElo "2744"]
[BlackElo "2385"]
[TimeControl "180+1"]
[EndTime "11:06:22 PDT"]
[Termination "VladimirBelous won by resignation"]

1. c4 {[%clk 0:03:00.9]} 1... c6 {[%clk 0:02:59.5]} 2. d4 {[%clk 0:03:00.2]}
2... d5 {[%clk 0:02:59.7]} 3. Nf3 {[%clk 0:03:00.3]} 3... Nf6 {[%clk 0:02:59.3]}
4. e3 {[%clk 0:03:00.7]} 4... g6 {[%clk 0:02:56.6]} 5. Nc3 {[%clk 0:02:58.2]}
5... Bg7 {[%clk 0:02:56.8]} 6. cxd5 {[%clk 0:02:58.8]} 6... Nxd5 {[%clk
0:02:54.1]} 7. Be2 {[%clk 0:02:54]} 7... O-O {[%clk 0:02:53.8]} 8. O-O {[%clk
0:02:54]} 8... Be6 {[%clk 0:02:49.3]} 9. Ne4 {[%clk 0:02:44.1]} 9... Bf5 {[%clk
0:02:41.2]} 10. Ng3 {[%clk 0:02:40.5]} 10... Bc8 {[%clk 0:02:31.2]} 11. e4
{[%clk 0:02:31.3]} 11... Nf6 {[%clk 0:02:31]} 12. h3 {[%clk 0:02:31]} 12... Nbd7
{[%clk 0:02:30.3]} 13. Be3 {[%clk 0:02:21.9]} 13... a5 {[%clk 0:02:16.2]} 14. a4
{[%clk 0:02:20.4]} 14... Qc7 {[%clk 0:02:03.2]} 15. Rc1 {[%clk 0:02:10]} 15...
e5 {[%clk 0:02:00.2]} 16. d5 {[%clk 0:01:54.5]} 16... Rd8 {[%clk 0:01:51.2]} 17.
Qc2 {[%clk 0:01:50.4]} 17... Qb8 {[%clk 0:01:38.2]} 18. Rfd1 {[%clk 0:01:41.9]}
18... cxd5 {[%clk 0:01:36.2]} 19. exd5 {[%clk 0:01:42.8]} 19... b6 {[%clk
0:01:32.7]} 20. d6 {[%clk 0:01:42.8]} 20... Bb7 {[%clk 0:01:30.3]} 21. Ng5
{[%clk 0:01:43.1]} 21... h6 {[%clk 0:01:26.1]} 22. Nxf7 {[%clk 0:01:43.4]} 22...
Kxf7 {[%clk 0:01:25.5]} 23. Bc4+ {[%clk 0:01:44]} 23... Bd5 {[%clk 0:01:07.9]}
24. Rxd5 {[%clk 0:01:43.4]} 1-0

[Event "*** SCC Grand Prix: Titled Tuesday Blitz"]
[Site "Chess.com"]
[Date "2020.06.02"]
[Round "6"]
[White "51616516516"]
[Black "andy_rekt"]
[Result "1-0"]
[WhiteElo "2374"]
[BlackElo "2043"]
[TimeControl "180+1"]
[EndTime "11:06:22 PDT"]
[Termination "51616516516 won by resignation"]

1. d4 {[%clk 0:03:00.9]} 1... e6 {[%clk 0:02:58.9]} 2. c4 {[%clk 0:03:01.2]}
2... Nf6 {[%clk 0:02:58.3]} 3. Nc3 {[%clk 0:03:01.4]} 3... Bb4 {[%clk
0:02:57.6]} 4. Qc2 {[%clk 0:03:01.7]} 4... O-O {[%clk 0:02:52.9]} 5. Nf3 {[%clk
0:03:01]} 5... d5 {[%clk 0:02:52.4]} 6. cxd5 {[%clk 0:03:00.5]} 6... exd5 {[%clk
0:02:51.8]} 7. Bg5 {[%clk 0:02:59.7]} 7... h6 {[%clk 0:02:46.9]} 8. Bxf6 {[%clk
0:02:56]} 8... Qxf6 {[%clk 0:02:45.8]} 9. a3 {[%clk 0:02:56.3]} 9... Bxc3+
{[%clk 0:02:45.1]} 10. Qxc3 {[%clk 0:02:57.2]} 10... c6 {[%clk 0:02:44.9]} 11.
e3 {[%clk 0:02:56.9]} 11... Nd7 {[%clk 0:02:41]} 12. Be2 {[%clk 0:02:51.3]}
12... Qg6 {[%clk 0:02:27.7]} 13. O-O {[%clk 0:02:48.6]} 13... Nf6 {[%clk
0:02:26.6]} 14. Ne5 {[%clk 0:02:42.4]} 14... Qf5 {[%clk 0:02:23.7]} 15. b4
{[%clk 0:02:33.1]} 15... Ne4 {[%clk 0:02:19.7]} 16. Qc2 {[%clk 0:02:25]} 16...
f6 {[%clk 0:02:16.7]} 17. Bg4 {[%clk 0:01:44]} 17... Qg5 {[%clk 0:02:03.6]} 18.
f4 {[%clk 0:01:37.5]} 18... Qh4 {[%clk 0:01:59.6]} 19. g3 {[%clk 0:01:12.2]}
19... Nxg3 {[%clk 0:01:58.7]} 20. Bxc8 {[%clk 0:01:04.2]} 20... Nxf1 {[%clk
0:01:54.4]} 21. Be6+ {[%clk 0:00:59.5]} 1-0